Cogmind - Beta 16.1 @@@ ROGUE MODE // 2026.03.24 @ 14:38:42 Player: Godsword Result: Destroyed by AZ-3MK(R) with Subdweller Laser Performance ------------- Evolutions (0) 0 Regions Visited (3) 600 Robots Destroyed (11) 55 Value Destroyed (130) 130 Prototype IDs (0) 0 Alien Tech Used (0) 0 Bonus (0) 0 TOTAL SCORE: 785 Bonus ------- None Cogmind --------- Core Integrity 0/250 Matter 295/300 Energy 99/100 System Corruption 0% Temperature Cool (6) Movement Core (50) Location -10/Subcaves Parts ------- > --- POWER (1) -------- (None) > --- PROPULSION (2) --- (None) > --- UTILITY (2) ------ Subdweller Optics > --- WEAPON (2) ------- (None) > --- INVENTORY (5) ---- Improved Ion Engine Wheel Small Storage Unit Medium Matter Pod (100) Propulsion Shielding Peak State ------------ > --- POWER ------------ Improved Ion Engine > --- PROPULSION ------- Compact Wheel Subdweller Monowheel > --- UTILITY ---------- Medium Storage Unit Subdweller Optics > --- WEAPON ----------- Assault Rifle Light Cannon > --- INVENTORY -------- Light Ion Engine Improved Ion Engine Subdweller Power Source Wheel Wheel Small Storage Unit Medium Matter Pod Propulsion Shielding Heavy Assault Rifle Mining Laser [Rating: 11] Favorites ----------- Power Light Ion Engine Engine Light Ion Engine Propulsion Compact Wheel Wheel Compact Wheel Utility Medium Storage Unit Device Improved Terrain Scanner Storage Medium Storage Unit Weapon Assault Rifle Ballistic Gun Assault Rifle Ballistic Cannon Light Cannon Special Weapon Mining Laser Build | -11 -10 -10 -10 ------- Run | Yrd Mat Min Sub Slots Evolved . | . . . . Power . | . . . . Propulsion . | . . . . Utility . | . . . . Weapon . | . . . . Parts Attached 17 | 8 1 1 7 Power 3 | 1 . . 2 Engine 3 | 1 . . 2 Core . | . . . . Reactor . | . . . . Propulsion 5 | 3 . . 2 Treads . | . . . . Leg . | . . . . Wheel 5 | 3 . . 2 Hover . | . . . . Flight . | . . . . Utility 5 | 2 1 . 2 Device 3 | 1 . . 2 Storage 2 | 1 1 . . Processor . | . . . . Hackware . | . . . . Protection . | . . . . Artifact . | . . . . Weapon 4 | 2 . 1 1 Energy Gun . | . . . . Energy Cannon . | . . . . Ballistic Gun 2 | 2 . . . Ballistic Cannon 1 | . . 1 . Launcher . | . . . . Special Weapon 1 | . . . 1 Impact Weapon . | . . . . Slashing Weapon . | . . . . Piercing Weapon . | . . . . Special Melee Weapon . | . . . . Unidentified Prototypes . | . . . . Parts Lost 8 | . . . 8 Power 1 | . . . 1 Propulsion 3 | . . . 3 Utility 2 | . . . 2 Weapon 2 | . . . 2 Highest Loss Streak 5 | . . . 5 To Critical Strikes . | . . . . Average Backups 7 | 2 4 8 9 Power 1 | . 1 1 1 Propulsion 1 | 1 2 2 1 Utility 2 | . . 3 3 Weapon 1 | . 1 1 1 Tool/Special . | . . . . Unused Backups 6 | . . 1 5 Power 2 | . . 1 1 Propulsion . | . . . . Utility 3 | . . . 3 Weapon 1 | . . . 1 Tool/Special . | . . . . Average Slot Usage (%) 90 | . 100 98 86 Engine 12 | . 14 14 12 Wheel 25 | . 28 28 24 Device 13 | . 14 14 13 Storage 12 | . 14 14 12 Ballistic Gun 11 | . 28 21 6 Ballistic Cannon 9 | . . 6 11 Special Weapon 3 | . . . 4 Peak Build Rating 11 | 9 9 10 11 Average Rating 8 | 7 9 9 9 On Entrance 7 | . 9 9 10 Avg Prop Armor Cover (%) 5 | . . . 5 Naked Turns . | . . . . Heaviest Build 24 | 13 18 19 24 Greatest Support 36 | 32 32 32 36 Greatest Overweight (x) 1 | 1 . . 1 Average Overweight (x) . | . . . . Largest Inventory Capacity 10 | 8 10 10 10 Average Capacity 9 | 7 9 10 9 Most Carried 10 | 4 6 10 10 Average Carried 7 | 2 4 8 9 Final Capacity 10 | 8 10 10 5 Final Carried 10 | 4 6 10 5 Class Distribution -------------------- 82% | Mutant 17% | Scavenger-Mutant Dominant Class ---------------- Mutant | -10/Materials Mutant | -10/Mines Mutant | -10/Subcaves Resources | -11 -10 -10 -10 ----------- Run | Yrd Mat Min Sub Matter Collected 623 | 379 49 116 79 Remotely . | . . . . Salvage Created 297 | 203 . 14 80 Parts 26 | 19 . 1 6 Haulers Intercepted . | . . . . Recyclers Shooed . | . . . . Parts Field Recycled . | . . . . Retrieved Matter . | . . . . Parts Self-Destructed . | . . . . Prevented . | . . . . Parts Restored . | . . . . Kills | -11 -10 -10 -10 ------- Run | Yrd Mat Min Sub Combat Hostiles Destroyed 2 | . . . 2 Cannons 2 | . . . 2 Classes Destroyed 4 | 3 . . 1 Worker 2 | 2 . . . Tunneler 6 | 5 . 1 . Recycler 1 | 1 . . . Subdweller 2 | . . . 2 Best Kill Streak 3 | 3 . 1 2 Combat Bots Only 2 | . . . 2 Max Kills in Single Turn 1 | 1 . 1 1 Gunslinging . | . . . . Exploded . | . . . . Melee . | . . . . Uniques/NPCs Destroyed . | . . . . Combat | -11 -10 -10 -10 -------- Run | Yrd Mat Min Sub Hostile Shots Fired 29 | . . . 29 Missed 8 | . . . 8 Hits 21 | . . . 21 Projectile 21 | . . . 21 AOE 6 | . . . 6 Critical Strikes 3 | . . . 3 Damage Taken 749 | . . . 749 Core 251 | . . . 251 Absorbed by Shields . | . . . . Core Remaining (%) 100 | 100 . . . Volleys Fired 42 | 23 . 1 18 Largest 2 | 2 . 2 2 Hottest 100 | 40 . 40 100 Shots Fired 73 | 46 . 2 25 Gun 55 | 46 . 2 7 Cannon 7 | . . . 7 Launcher . | . . . . Special 11 | . . . 11 Kinetic 62 | 46 . 2 14 Thermal 11 | . . . 11 Explosive . | . . . . Electromagnetic . | . . . . Robot Hit Streak 8 | 4 . 6 8 Robot Miss Streak 4 | 4 . . 2 Penetration Max . | . . . . Secondary Targets . | . . . . Shots Hit Robots 32 | 20 . 2 10 Core Hits 14 | 9 . 1 4 Critical Kills 1 | 1 . . . Critical Parts Destroyed 1 | 1 . . . Critical Strikes 2 | 2 . . . Destroy 2 | 2 . . . Melee Attacks . | . . . . Impact . | . . . . Slashing . | . . . . Piercing . | . . . . Sneak Attacks . | . . . . Combat Hostiles . | . . . . Follow-up Attacks . | . . . . Damage Inflicted 479 | 302 . 25 152 Guns 387 | 302 . 25 60 Cannons 89 | . . . 89 Explosions . | . . . . Melee . | . . . . Ramming 3 | . . . 3 Kinetic 476 | 302 . 25 149 Thermal . | . . . . Explosive . | . . . . Electromagnetic . | . . . . Impact . | . . . . Slashing . | . . . . Piercing . | . . . . Highest Corruption . | . . . . Average Corruption . | . . . . Corruption Purged . | . . . . Corruption Blocked . | . . . . Overload Shots . | . . . . Overflow Damage . | . . . . Projectiles . | . . . . Explosions . | . . . . Melee . | . . . . Knockbacks 1 | . . . 1 Impact . | . . . . Kinetic 1 | . . . 1 Secondary . | . . . . Self-Inflicted Damage 1 | . . . 1 Shots . | . . . . Rammed 1 | . . . 1 Targets Rammed 1 | . . . 1 Kicked . | . . . . Crushed . | . . . . Highest Temperature 265 | . . . 265 Average Temperature 131 | . . . 131 Received Heat Transfer 623 | . . . 623 Siege Activations . | . . . . Martial Activations . | . . . . Shielding Activations . | . . . . Robots Disrupted . | . . . . Combat Hostiles . | . . . . Robots Corrupted . | . . . . Combat Hostiles . | . . . . Parts Fried . | . . . . Impact Corruptions . | . . . . Robots Melted . | . . . . Combat Hostiles . | . . . . Parts Melted . | . . . . Heat Transferred . | . . . . Parts Sabotaged . | . . . . Parts Stolen . | . . . . Parts Stripped . | . . . . Power Chain Reactions . | . . . . Alert | -11 -10 -10 -10 ------- Run | Yrd Mat Min Sub Maximum Alert Level . | . . . . Low Security (%) 100 | 100 100 100 . Level 1 . | . . . . Level 2 . | . . . . Level 3 . | . . . . Level 4 . | . . . . Level 5 . | . . . . High Security . | . . . . Max Security . | . . . . Peak Influence 10 | 10 . 5 . Initial . | . . . . Average 1 | 1 . . . Influence Increases 45 | 40 . 5 . Destroy 0b10 Robot/NC 45 | 40 . 5 . Influence Decreases 45 | 40 . 5 . Time Decay 45 | 40 . 5 . Squads Dispatched . | . . . . Investigation . | . . . . Extermination . | . . . . Reinforcement . | . . . . Assault . | . . . . Garrison . | . . . . Intercept . | . . . . Searches Triggered . | . . . . Construction Impeded . | . . . . Haulers Reinforced . | . . . . Active Scanning Responses . | . . . . Cargo Convoy Interrupts . | . . . . Stealth | -11 -10 -10 -10 --------- Run | Yrd Mat Min Sub Distress Signals . | . . . . Communications Jammed . | . . . . Distress Signals . | . . . . Times Spotted 7 | . . 1 6 Peak Tracking Total 3 | . . 1 3 Tactical Retreats 1 | . . . 1 Traps | -11 -10 -10 -10 ------- Run | Yrd Mat Min Sub Traps Triggered . | . . . . Indirectly . | . . . . Trap Hack Attempts . | . . . . Triggered . | . . . . Disarmed . | . . . . Reprogrammed . | . . . . Reused . | . . . . Traps Extracted . | . . . . Installed . | . . . . Triggered . | . . . . Machines | -11 -10 -10 -10 ---------- Run | Yrd Mat Min Sub Machines Disabled . | . . . . Max in Single Turn . | . . . . Machines Repaired . | . . . . Machines Dismantled . | . . . . Machines Sabotaged . | . . . . Overloaded Fab Kills . | . . . . Hacking | -11 -10 -10 -10 --------- Run | Yrd Mat Min Sub Machines Accessed . | . . . . Terminals . | . . . . Fabricators . | . . . . Repair Stations . | . . . . Recycling Units . | . . . . Scanalyzers . | . . . . Garrison Access . | . . . . Total Hacks . | . . . . Successful . | . . . . Failed . | . . . . Catastrophic . | . . . . Database Lockouts . | . . . . Manual . | . . . . Terminals . | . . . . Fabricators . | . . . . Repair Stations . | . . . . Recycling Units . | . . . . Scanalyzers . | . . . . Garrison Access . | . . . . Terminal Hacks . | . . . . Fabricator Hacks . | . . . . Repair Station Hacks . | . . . . Recycling Unit Hacks . | . . . . Scanalyzer . | . . . . Garrison Access Hacks . | . . . . Unauthorized Hacks . | . . . . Terminals . | . . . . Fabricators . | . . . . Repair Stations . | . . . . Recycling Units . | . . . . Scanalyzers . | . . . . Garrison Access . | . . . . Data Cores Recovered . | . . . . Used . | . . . . Hacking Detections . | . . . . Full Trace Events . | . . . . Feedback Events . | . . . . Feedback Blocked . | . . . . Robot Schematics Acquired . | . . . . Robots Built . | . . . . Authchips . | . . . . Time . | . . . . Total Robot Build Rating . | . . . . Part Schematics Acquired . | . . . . Parts Built . | . . . . Authchips . | . . . . Time . | . . . . Total Part Build Rating . | . . . . Part Studies Acquired . | . . . . Parts Repaired . | . . . . Time . | . . . . Parts Recycled . | . . . . Recycled Matter . | . . . . Retrieved Matter . | . . . . Retrieved Components . | . . . . Parts Scanalyzed . | . . . . Part Schematics Acquired . | . . . . Parts Damaged . | . . . . Bothacking | -11 -10 -10 -10 ------------ Run | Yrd Mat Min Sub Used RIF Installer . | . . . . Robots Hacked . | . . . . Non-combat . | . . . . Combat . | . . . . Robot Hacks Applied . | . . . . Relay Couplers Released . | . . . . Fabnet Peak Effective % . | . . . . Robots Rewired . | . . . . Allies Hacked . | . . . . Hacks Repelled . | . . . . Allies | -11 -10 -10 -10 -------- Run | Yrd Mat Min Sub Total Allies . | . . . . Largest Group . | . . . . Highest-Rated Group . | . . . . Highest-Rated Ally . | . . . . Total Orders . | . . . . Ally Attacks . | . . . . Total Damage . | . . . . Kills . | . . . . Allies Corrupted . | . . . . Allies Melted . | . . . . Intel | -11 -10 -10 -10 ------- Run | Yrd Mat Min Sub Active Infowar (turns) 738 | 132 50 130 426 Optics 336 | . . . 336 Terrain 402 | 132 50 130 90 Robot Analysis Total . | . . . . Derelict Logs Recovered 1 | . . 1 . Drone Launches . | . . . . Drone Recoveries . | . . . . Exploration | -11 -10 -10 -10 ------------- Run | Yrd Mat Min Sub Turns Passed 807 | 173 50 130 454 Spaces Moved 604 | 91 48 120 345 Core 54 | 1 . . 53 Treads . | . . . . Legs . | . . . . Wheels 550 | 90 48 120 292 Hover . | . . . . Flight . | . . . . Fastest Speed 50 | 50 100 100 50 Average Speed 98 | 96 100 100 98 Slowest Speed 115 | 100 100 100 115 Overloaded Moves . | . . . . Propulsion Burnouts . | . . . . Robots Hopped . | . . . . Potential Cave-ins . | . . . . Cave-ins Triggered . | . . . . Exploration Rate (%) 15 | 5 16 17 25 Regions Visited 3 Branch Regions 2 Pre-discovered Areas 1 | . . . 1 Known Exits Taken . | . . . . Unknown Exits Taken 3 | 1 1 1 . Scrap Searched . | . . . . Spaces Dug . | . . . . Terrain Destroyed . | . . . . Melee . | . . . . Projectile . | . . . . AOE . | . . . . Terrain Rammed . | . . . . Walls Destroyed . | . . . . Machines Disabled . | . . . . Actions | -11 -10 -10 -10 --------- Run | Yrd Mat Min Sub Total 716 | 126 49 128 413 Wait 34 | . . . 34 Move 601 | 90 47 119 345 Hop . | . . . . Pick Up 13 | 4 1 5 3 Fast Attach 11 | 8 . 1 2 Attach 3 | . . . 3 Detach . | . . . . Swap 3 | . 1 . 2 Drop 8 | 1 . 2 5 Fire 42 | 23 . 1 18 Melee . | . . . . Ram 1 | . . . 1 Kick . | . . . . Crush . | . . . . Escape Stasis . | . . . . Rewire . | . . . . Trap . | . . . . Miscellaneous . | . . . . Route ------- -11/Scrapyard -10/Materials -10/Mines -10/Subcaves History --------- Turn | Location | Event 14 | -11/Scrapyard | Discovered new exit (range 16) 174 | -11/Scrapyard | Entered Materials 215 | -10/Materials | Discovered new exit (range 6) 224 | -10/Materials | Entered Mines 276 | -10/Mines | Joined a pair of Derelicts in attacking an 0b10 outpost 288 | -10/Mines | Learned location of 1 exit from Materials 321 | -10/Mines | Build established: Mutant 346 | -10/Mines | Discovered new exit (range 9) 354 | -10/Mines | Entered Subcaves 523 | -10/Subcaves | A swath of the cavern ceiling suddenly collapsed 646 | -10/Subcaves | Learned location of Zion (-7) 646 | -10/Subcaves | Met a Zionite searching for "candidates" 714 | -10/Subcaves | A Subdweller sparked back to life 714 | -10/Subcaves | A Subdweller sparked back to life 714 | -10/Subcaves | A Subdweller sparked back to life 741 | -10/Subcaves | Core integrity fell below 50% 752 | -10/Subcaves | Core integrity fell below 20% 782 | -10/Subcaves | Lost 5 parts (1p2n2w) 808 | -10/Subcaves | Destroyed by AZ-3MK(R) with Subdweller Laser Last Messages --------------- might I suggest a trip to Zion?" World map updated: -7/Zion. 00708_ Dropped Assault Rifle. 00708_ Acquired Scrap Shield Fragment. 00714_ 0T-8RH(R) creaks and sparks as it begins to move. 00714_ J6-YOB(R) creaks and sparks as it begins to move. 00714_ AZ-3MK(R) creaks and sparks as it begins to move. 00714_ Mining Laser destroyed. 00721_ Lgt. Cannon destroyed. 00736_ Imp. Ion Engine destroyed. 00739_ 8L-OTQ(z) destroyed. 00743_ Dropped Broken Sub. Monowheel. 00751_ Com. Wheel destroyed. 00751_ Wheel destroyed. 00752_ Dropped Med. Storage Unit. 00752_ Dropped Sub. Power Source. 00800_ Slammed into J6-YOB(R). Map ----- +----------------------------------------------------+ | ?## ##???????? ????????????????? | | ??# ## ##??????? % ????????????????? | | ?## ####### #?????? ????????????????? | | ??# #?????# ##????? ?????????????????? | | ??####?????# #???? ???????????????????? | | ???????????### #??? #????????????????????? | | ????????????## #### #?????????????????????? | | ?????????#### ## #?????????????????????? | | ????????## ## #???????????????????????? | | ???????## ### #???????????????????????? | | ???????# ## #??????????????????????????? | | ???????#### #??????????? ???????????????? | | ??????????## ###??????????? ??????????????? | | ???????????# ##???????????? #?????????????? | | ???????????# #??????????? ?????????????? | | ??????????## #??????????? ?????????????? | | ??????????# ##??????????? ?????????????? | | ??????????## % ##???????????? #?????????????? | | ???????????### ##?????????????# #?????????????? | | ????????????##% #??????????????# #?????????????? | | ????????????# ##??????????????# $##????????????? | | ??????????### #######??#?????### #????????????? | | ??????????# #### #### "##?"" #????????????? | | ??????????# ### """#;###"###"" ##???????????? | | ??????????# #;##;;R"#"" "" ##??????????? | | ??????????# ##### R@ ##??#" """ #??????????? | | ??????????## "#??##### "#???#"""" #??????????? | | ???????????## #####""" ;"#????# "#???????????? | | ????????????# """"#""######??### #???????????? | | ???????????## #"###" # #???## ## #???????????? | | ??????????## ##"####""##??#"" ####???????????? | | ??????##### "##??###"####"" #??????????????? | | ??????# ##??#"#"##""####??????????????? | | ??????# ##?#""#""#"######????????????? | | ??????#%% ## #?#"#"""#""# #????????????? | | ??????## ####### #####"##"" #????????????? | | ???????# #?????# #???"##### ###??????????? | | ???????## ##?????# ##??#"????### # #??????????? | | ????????####??????####???##??????## #??????????? | | ?????????????????????????????????## ##??????????? | | ?????????????????????????????????# #??????????? | | ?????????????????????????????????# #??????????? | | ?????????????????????????????????# ##??????????? | | ?????????????????????????????????## #??????????? | | ??????????????????????????????????# #??????????? | | ?????????????????????????????????## ##??????????? | | ?????????????????????????????????# "##?????????? | | ????????????????????????????????##" ""#?????????? | | ????????????????????????????????# " "#?????????? | | ????????????????????????????????# "! "##?????????? | +----------------------------------------------------+ Best States ------------- Heat Dissipation 25 Energy Generation 15 Energy Capacity 265 Matter Stores 300 Matter Capacity 300 Sight Range 21 Terrain Scan Range 16 Terrain Scan Density 10 Evasion (%) 50 Item Schematics ----------------- None Robot Schematics ------------------ None Fabricated ------------ Nothing Repaired ---------- Nothing Studied --------- None Alien Tech Used ----------------- None Achievements -------------- None Challenges ------------ None Game ------ Seed TerrorTransportTearclaws Manual? 0 Play Time 00:11:06 Cumulative 26.2 hours Start 2026.03.24 @ 14:29:36 End 2026.03.24 @ 14:38:42 Sessions 1 Manual Loads 0 Difficulty Rogue Special Mode None Game No. 70 Rogue 70 Adventurer 0 Explorer 0 Win Type - Total 2 Types 2/0/0/0/0/0/0/0/0/0 Lore% 29 Gallery% 26 Achievement% 21 Wizard Run 0 Options --------- Layout 1 ASCII 0 Keyboard 0 Movement Mouse Keybinds 0 Fullscreen 1 Font 16/SmallcapsGlow Map View 50x40 Zoom Use 0% Tactical HUD 1 Map Filters NONE Filters NONE Steam SD RUN: 5db48437-8ba9-433b-8cbe-0d13fcd4b240